bitfinex/quotes_ETHUSD_20220115
["timestamp","ask_amount","ask_price","bid_price","bid_amount"]
[1642260422440,0.00113685,3344.2,3344.1,13.55860774]
[1642260423439,0.00113685,3344.2,3344.1,20.10860774]
[1642260423641,0.00113685,3344.2,3344.1,13.55860774]
[1642260424442,0.00113685,3344.2,3344.1,17.70860774]
[1642260425141,0.00113685,3344.2,3344.1,15.15]
[1642260425342,0.00113685,3344.2,3344.1,11.0]
[1642260426025,0.045463,3344.9,3344.2,7.1976]
[1642260426223,0.045463,3344.9,3344.7,1.33987137]
[1642260426624,0.045463,3344.9,3344.8,1.52601006]
[1642260426828,1.49736464,3345.9,3344.8,1.52601006]
[1642260427025,0.00397896,3344.9,3344.8,1.52601006]
[1642260437842,0.045463,3345.3,3345.0,0.06228725]
[1642260438242,0.00511582,3345.8,3344.8,1.52601006]
[1642260438642,1.86185906,3345.9,3344.8,1.52601006]
[1642260438643,0.00454739,3345.7,3344.8,1.52601006]
[1642260438942,0.00397897,3345.6,3344.8,1.52601006]
[1642260439444,0.00341054,3345.5,3344.8,1.52601006]
[1642260439848,0.00284212,3345.4,3344.8,1.52601006]
[1642260440243,0.0022737,3345.3,3344.8,1.52601006]
[1642260440644,0.00170527,3345.2,3344.8,1.52601006]
[1642260441092,0.00113685,3345.1,3344.8,1.52601006]
[1642260441393,4.72915545,3345.8,3344.8,1.52601006]
[1642260441394,0.00454739,3345.7,3344.8,1.52601006]
[1642260441789,4.72915545,3345.8,3344.8,1.52601006]
[1642260441790,0.00397897,3345.6,3344.8,1.52601006]
[1642260442190,0.00341054,3345.5,3344.8,1.52601006]
[1642260442390,0.00341054,3345.5,3345.4,1.40305511]
[1642260442591,0.431,3345.7,3345.4,1.40305511]
[1642260442992,0.00397897,3345.6,3345.4,1.40305511]
[1642260443391,8.10341054,3345.5,3345.4,1.40305511]
[1642260443792,0.00341054,3345.5,3345.4,1.40305511]
[1642260444391,0.00341054,3345.5,3344.5,3.8229]
[1642260444645,0.00341054,3345.5,3344.3,1.94577]
[1642260444646,1.17878,3345.4,3344.3,1.1982]
[1642260444841,1.17878,3345.4,3344.6,0.00170527]
[1642260444842,1.18162212,3345.4,3344.6,0.00170527]
[1642260445043,0.0787316,3345.3,3344.4,0.00284211]
[1642260445241,0.5097316,3345.3,3344.4,0.00284211]
[1642260445442,0.00170527,3345.2,3344.4,0.00284211]
[1642260445641,0.00170527,3345.2,3345.0,1.1598866]
[1642260445850,9.50113685,3345.1,3345.0,1.1598866]
[1642260447243,14.90113685,3345.1,3345.0,1.1598866]
[1642260447843,9.50113685,3345.1,3344.4,0.00284211]
[1642260448047,0.431,3345.0,3344.4,0.00284211]
[1642260448296,0.431,3345.0,3343.2,4.8818]
[1642260448297,4.14256224,3344.9,3344.0,0.00511581]
[1642260448497,4.14256224,3344.9,3343.9,0.00568423]
[1642260448498,0.431,3344.8,3343.9,0.00568423]
[1642260448800,0.5074579,3344.8,3343.9,0.00568423]
[1642260448995,0.0764579,3344.7,3344.4,1.33057884]
[1642260449194,0.431,3344.6,3344.4,1.33057884]
[1642260449396,1.81930195,3344.6,3344.5,0.00227369]
[1642260449596,1.89575985,3344.6,3344.5,0.00227369]
[1642260450195,14.44575985,3344.6,3344.5,0.00227369]
[1642260450397,14.44575985,3344.6,3343.3,0.00909477]
[1642260450596,4.34996781,3344.5,3343.3,0.00909477]
[1642260450796,0.431,3344.4,3343.3,0.00909477]
[1642260451195,0.431,3344.4,3344.2,1.21742005]
[1642260451596,0.431,3344.4,3344.3,0.00341054]
[1642260452055,12.2,3344.3,3344.2,1.19458114]
[1642260452242,16.39800047,3344.3,3344.2,1.19458114]
[1642260452641,16.39800047,3344.3,3343.2,3.6603]
[1642260453041,0.431,3344.2,3343.3,0.00568423]
[1642260453642,0.431,3344.2,3343.4,1.10938839]
[1642260454047,0.431,3344.2,3343.5,0.00454738]
[1642260455644,4.18339874,3344.1,3343.5,0.00454738]
[1642260455889,0.431,3344.0,3343.5,0.00454738]
[1642260456891,4.29226464,3343.9,3343.5,0.00454738]
[1642260457091,5.80588639,3344.0,3343.5,0.00454738]
[1642260457290,5.7985523,3344.0,3343.5,0.00454738]
[1642260457491,1.4239,3344.0,3343.5,0.00454738]
[1642260458591,4.29683601,3343.9,3343.5,0.00454738]
[1642260459392,1.4239,3344.0,3343.5,0.00454738]
[1642260459645,5.7867369,3344.0,3343.5,0.00454738]
[1642260459843,1.4239,3344.0,3343.1,0.00682108]
[1642260460444,1.25664439,3343.2,3343.1,0.00682108]
[1642260460644,0.431,3344.0,3343.1,0.00682108]
[1642260461249,1.92921712,3344.0,3343.7,1.34234588]
[1642260461448,1.49821712,3344.0,3343.7,1.34234588]
[1642260461649,1.32510518,3344.0,3343.8,0.00284211]
[1642260461849,0.43823551,3344.8,3343.8,0.00284211]
[1642260462245,1.50017664,3344.7,3343.8,0.00284211]
[1642260462645,0.00170527,3344.6,3343.8,0.00284211]
[1642260463047,0.00113685,3344.5,3344.3,1.21095513]
[1642260463292,0.00113685,3344.5,3343.8,0.00284211]
[1642260463491,1.49790294,3344.7,3343.8,0.00284211]
[1642260463492,0.00170527,3344.6,3343.8,0.00284211]
[1642260463890,0.00113685,3344.5,3343.8,0.00284211]
[1642260464291,0.00170527,3344.6,3343.8,0.00284211]
[1642260464494,0.00170527,3344.6,3343.2,0.00625265]
[1642260464689,0.00113685,3344.5,3343.2,0.00625265]
[1642260465089,0.00170527,3344.6,3343.2,0.00625265]
[1642260465291,1.34947387,3344.0,3343.2,0.00625265]
[1642260465691,1.34947387,3344.0,3343.9,1.51357882]
[1642260465989,0.00113685,3344.5,3343.9,1.51585251]
[1642260466190,0.00113685,3344.5,3343.9,0.00227369]
[1642260466392,0.00113685,3344.5,3344.0,0.00170527]
[1642260466598,0.00113685,3344.5,3343.2,0.75406265]
[1642260467240,0.00113685,3344.5,3343.2,3.31252055]
[1642260467440,0.00113685,3344.5,3343.3,0.06691212]
[1642260467640,0.00113685,3344.5,3343.6,0.74771]
[1642260467840,0.00113685,3344.5,3343.7,0.06387819]
[1642260468040,1.36868519,3344.5,3343.7,1.35391496]
[1642260468240,1.36868519,3344.5,3343.8,0.00284211]
[1642260468241,0.00113685,3344.5,3343.8,0.00284211]
[1642260472096,0.00113685,3344.5,3343.7,1.25334653]
[1642260472290,1.34423212,3344.4,3344.2,1.38897217]
[1642260472494,0.00341054,3344.4,3344.2,1.38897217]
[1642260472693,1.49745433,3345.7,3344.3,22.12356224]
[1642260472891,1.49745433,3345.7,3344.7,0.045463]
[1642260473093,0.01023162,3345.6,3344.7,0.045463]
[1642260473392,0.01023162,3345.6,3344.7,1.35554177]
[1642260473393,1.515014,3344.9,3344.7,1.35554177]
[1642260473595,1.515014,3344.9,3344.1,0.045463]
[1642260473791,0.00568423,3344.8,3344.1,0.045463]
[1642260473993,0.08214213,3344.8,3343.7,4.14256224]
[1642260474192,0.08157371,3344.7,3343.6,6.255463]
[1642260474649,1.37956906,3344.6,3343.6,6.255463]
[1642260474945,0.43497896,3344.5,3343.6,6.255463]
[1642260475145,0.51143686,3344.5,3343.6,6.255463]
[1642260475343,0.00341054,3344.4,3343.6,6.255463]
[1642260475543,0.43441054,3344.4,3343.6,6.255463]
[1642260475743,0.00284211,3344.3,3343.6,6.255463]
[1642260475945,0.74805,3344.2,3343.6,6.255463]
[1642260476143,1.29803006,3343.7,3343.6,0.045463]
[1642260476346,1.29803006,3343.7,3343.3,3.7878]
[1642260476543,1.29803006,3343.7,3343.2,1.19609864]
[1642260476544,1.29803006,3343.7,3343.6,0.00113685]
[1642260476949,0.00170527,3344.1,3343.3,0.00284212]
[1642260477344,0.00113684,3344.0,3343.3,0.00284212]
[1642260477748,1.55683538,3344.0,3343.3,0.00284212]
[1642260477949,1.54491274,3344.0,3343.3,0.00284212]
[1642260478294,0.00170527,3344.1,3343.3,0.00284212]
[1642260478691,0.00113684,3344.0,3343.3,0.00284212]
[1642260479091,1.49332063,3344.1,3343.3,0.00284212]
[1642260479292,1.49332063,3344.1,3343.4,1.40898831]
[1642260479492,0.00113684,3344.0,3343.3,0.00284212]
[1642260479699,0.00113684,3344.0,3343.5,0.00170527]
[1642260479893,0.00113684,3344.0,3343.3,0.00284212]
[1642260480092,0.00113684,3344.0,3343.2,0.00341054]
[1642260481093,1.47508157,3343.5,3343.2,0.00341054]
[1642260481795,0.00113684,3344.0,3343.2,0.00341054]
[1642260482846,1.44770266,3343.6,3343.2,0.00341054]
[1642260484753,1.44770266,3343.6,3343.2,1.20656527]
[1642260485049,1.44770266,3343.6,3343.3,0.00284212]
[1642260485248,0.00113684,3344.0,3343.3,0.00284212]
[1642260485449,0.00113684,3344.0,3343.3,0.06349523]
[1642260485650,0.00113684,3344.0,3343.3,0.00284212]
[1642260485895,0.00113684,3344.0,3343.4,0.0022737]
[1642260486096,0.00113684,3344.0,3343.2,0.00341054]
[1642260486699,0.00113684,3344.0,3343.2,0.01572915]
[1642260487100,0.00113684,3344.0,3343.3,0.00284212]
[1642260487501,0.00113684,3344.0,3343.6,1.13357809]
[1642260487702,0.00113684,3344.0,3343.3,0.00284212]
[1642260488801,0.00113684,3344.0,3343.2,0.00341054]
[1642260490045,0.00113684,3344.0,3343.3,1.5629944]
[1642260490444,0.00113684,3344.0,3343.4,0.0022737]
[1642260492544,0.00113684,3344.0,3343.4,0.0477367]
[1642260492947,0.00113684,3344.0,3343.5,0.00170527]
[1642260493147,0.00113684,3344.0,3343.7,0.045463]
[1642260493795,0.00113684,3344.0,3343.7,5.53913085]
[1642260493995,0.00113684,3344.0,3343.8,1.25305558]
[1642260494395,0.00113684,3344.0,3343.9,12.418067]
[1642260495197,7.89e-05,3344.3,3344.0,12.4]
[1642260495398,4.65543533,3345.6,3344.2,0.045463]
[1642260495399,3.1865,3345.6,3344.2,0.045463]
[1642260495598,3.1865,3345.6,3344.8,0.045463]
[1642260496001,3.1865,3345.6,3345.1,0.045463]
[1642260496599,9.2596132,3345.2,3345.1,0.045463]
[1642260496800,9.2596132,3345.2,3344.8,0.045463]
[1642260497070,7.85682108,3345.2,3344.8,0.045463]
[1642260497456,7.85682108,3345.2,3344.2,0.045463]
[1642260497664,7.85682108,3345.2,3344.1,1.2028]
[1642260497859,0.5074579,3345.1,3344.1,1.2028]
[1642260498058,1.19228053,3344.3,3344.1,1.2028]
[1642260498259,0.08214214,3345.0,3343.9,3.8869]
[1642260498458,0.00113685,3344.2,3343.9,3.8869]
[1642260498658,0.00511581,3344.9,3344.0,0.045463]
[1642260499057,1.1972352,3344.7,3344.0,0.045463]
[1642260499459,0.00341054,3344.6,3344.0,0.045463]
[1642260499857,0.00284212,3344.5,3344.0,0.045463]
[1642260500363,0.0022737,3344.4,3344.0,0.045463]
[1642260500795,0.00170527,3344.3,3344.0,0.045463]
[1642260501196,0.00113685,3344.2,3344.0,0.045463]
[1642260501396,1.51088937,3344.1,3344.0,0.045463]
[1642260502598,1.51088937,3344.1,3344.0,2.60364009]
[1642260503597,1.51088937,3344.1,3344.0,0.045463]
[1642260505651,1.51088937,3344.1,3344.0,2.55817594]
[1642260506444,1.51088937,3344.1,3343.8,1.20832944]
[1642260507348,1.51088937,3344.1,3343.5,0.00170527]
[1642260507747,0.431,3344.0,3343.4,0.00341054]
[1642260507949,1.4015,3344.0,3343.4,0.00341054]
[1642260508153,1.4015,3344.0,3343.7,1.11075383]
[1642260508393,1.4015,3344.0,3343.1,0.00511581]
[1642260508594,1.4015,3344.0,3343.8,0.00113684]
[1642260508795,1.4015,3344.0,3343.1,0.00511581]
[1642260509195,1.4015,3344.0,3343.0,0.00568423]
[1642260509598,2.8977437,3344.0,3343.0,0.00568423]
[1642260511798,1.51454825,3343.1,3343.0,0.00568423]
[1642260513746,0.431,3344.0,3343.0,0.05114723]
[1642260513945,1.212924,3343.8,3343.0,0.05114723]
[1642260514148,1.212924,3343.8,3343.1,0.00511581]
[1642260514347,0.431,3344.0,3343.1,0.05057881]
[1642260514749,1.14341067,3343.8,3343.2,0.00454738]
[1642260515348,2.46316924,3343.8,3343.2,0.00454738]
[1642260516194,1.14341067,3343.8,3343.2,0.00454738]
[1642260516595,1.14341067,3343.8,3343.5,0.045463]
[1642260516996,1.14341067,3343.8,3343.6,0.00227369]
[1642260517394,1.42316227,3343.7,3343.6,0.04773669]
[1642260517596,1.42316227,3343.7,3343.6,0.00227369]
[1642260517798,1.14341067,3343.8,3343.6,0.00227369]
[1642260517799,3.6024,3344.1,3343.6,0.04773669]
[1642260517999,0.0764579,3345.0,3343.6,0.04773669]
[1642260518000,4.27611054,3344.6,3344.0,0.045463]
[1642260518196,4.27611054,3344.6,3344.1,0.0533755]
[1642260518396,0.00284212,3344.5,3343.8,0.045463]
[1642260518796,4.2727,3344.6,3343.8,0.045463]
[1642260518797,1.21493388,3344.4,3344.1,1.32901512]
[1642260519197,0.00170527,3344.3,3344.1,1.32901512]
[1642260519647,0.00113685,3344.2,3344.1,1.28355212]
[1642260520445,3.90113685,3344.2,3343.7,0.00170527]
[1642260520847,1.51928321,3343.8,3343.7,0.00170527]
[1642260521449,3.90113685,3344.2,3344.0,1.52086041]
[1642260521648,0.00113685,3344.2,3343.5,0.04830511]
[1642260522049,0.00113685,3344.2,3343.7,0.045463]
[1642260522349,0.00113685,3344.2,3343.8,0.00113684]
[1642260523398,1.19482048,3344.1,3343.8,0.00113684]
[1642260523999,1.19482048,3344.1,3343.9,1.34197793]
[1642260526309,0.00113685,3344.2,3343.9,1.34197793]
[1642260526510,0.00113685,3344.2,3344.1,12.445463]
[1642260526706,0.00113685,3344.2,3344.1,16.70705467]
[1642260527059,0.00113685,3344.2,3344.1,0.045463]
[1642260527352,1.17710913,3344.2,3344.1,0.045463]
[1642260527753,1.17710913,3344.2,3344.1,2.60342351]
[1642260528554,0.00113685,3344.2,3344.1,2.60342351]
[1642260529156,0.00113685,3344.2,3344.1,6.75342351]
[1642260529358,0.00113685,3344.2,3344.1,0.045463]
[1642260530156,0.00113685,3344.2,3344.1,8.595463]
[1642260530558,0.00113685,3344.2,3344.1,12.64685755]
[1642260530801,0.00113685,3344.2,3344.1,8.595463]
[1642260531202,0.00113685,3344.2,3344.1,11.15345434]
[1642260531709,0.00113685,3344.2,3344.1,2.55799134]
[1642260532108,0.00113685,3344.2,3344.1,2.60345434]
[1642260532705,1.3674975,3344.2,3344.1,2.60345434]
[1642260533105,1.3674975,3344.2,3344.1,8.55345434]
[1642260533709,0.00113685,3344.2,3344.1,12.67767364]
[1642260536048,0.00113685,3344.2,3344.1,8.55345434]
[1642260536248,0.00113685,3344.2,3344.1,2.60345434]
[1642260536855,0.00113685,3344.2,3344.1,2.55799134]
[1642260537453,0.00113685,3344.2,3344.1,6.69385816]
[1642260537652,0.00113685,3344.2,3344.1,4.82436682]
[1642260538150,0.00113685,3344.2,3344.1,22.86226682]
[1642260538393,0.00113685,3344.2,3344.1,22.90772982]
[1642260538993,5.9076,3346.1,3344.2,15.6]
[1642260539195,5.9076,3346.1,3346.0,0.045463]
[1642260539594,5.9076,3346.1,3345.6,0.045463]
[1642260539795,7.45621217,3346.1,3346.0,0.045463]
[1642260539997,0.01023162,3346.0,3345.5,0.045463]
[1642260540198,0.01023162,3346.0,3344.7,3.98908511]
[1642260540399,0.0096632,3345.9,3345.1,0.045463]
[1642260540598,0.0096632,3345.9,3344.8,0.045463]
[1642260540800,0.00909478,3345.8,3344.8,0.045463]
[1642260540998,0.00909478,3345.8,3345.6,1.3915994]
[1642260541198,0.00852635,3345.7,3345.1,0.045463]
[1642260541400,1.19795521,3345.2,3345.1,0.045463]
[1642260541698,0.00568423,3345.2,3345.1,0.045463]
[1642260542145,0.00568423,3345.2,3345.1,1.49592442]
[1642260542347,0.00568423,3345.2,3345.1,1.45046142]
[1642260543550,1.19338978,3345.2,3345.1,1.45046142]
[1642260544149,10.39338978,3345.2,3345.1,1.45046142]
[1642260544549,1.19338978,3345.2,3345.1,1.45046142]
[1642260545046,1.19338978,3345.2,3344.5,1.2374]
[1642260545245,1.19338978,3345.2,3344.4,3.6293]
[1642260545447,0.00511581,3345.1,3344.4,3.6293]
[1642260545808,0.00454739,3345.0,3344.8,0.045463]
[1642260546201,0.00397896,3344.9,3344.8,0.045463]
[1642260546403,0.431,3345.7,3344.9,17.5]
[1642260546603,0.431,3345.7,3344.8,0.05832847]
[1642260546604,1.49714046,3346.4,3345.6,0.045463]
[1642260546802,0.0764579,3346.1,3345.6,0.045463]
[1642260547005,7.4264579,3346.1,3346.0,0.045463]
[1642260547207,7.4264579,3346.1,3346.0,1.39021561]
[1642260547501,7.4264579,3346.1,3346.0,2.67727714]
[1642260547702,7.35,3346.1,3345.1,4.18132982]
[1642260547901,7.35,3346.1,3345.0,1.2366]
[1642260548101,0.00625266,3346.0,3345.0,1.2366]
[1642260548302,0.00625266,3346.0,3345.1,0.045463]
[1642260548504,0.00568424,3345.9,3345.1,0.045463]
[1642260548704,0.00568424,3345.9,3345.4,0.045463]
[1642260548901,7.781,3346.1,3345.4,0.045463]
[1642260548902,0.00511582,3345.8,3345.4,0.045463]
[1642260549102,1.54077457,3345.7,3345.4,0.045463]
[1642260549305,1.54077457,3345.7,3345.1,0.045463]
[1642260549306,1.54532196,3345.7,3345.1,0.045463]
[1642260549548,0.00397897,3345.6,3345.0,0.045463]
[1642260549754,0.00397897,3345.6,3345.2,0.045463]
[1642260549949,0.00341054,3345.5,3345.4,0.045463]
[1642260550150,0.00341054,3345.5,3345.3,1.49018552]
[1642260550552,0.00284212,3345.4,3345.3,1.49018552]
[1642260551353,0.00284212,3345.4,3344.4,2.3592]
[1642260551354,1.49361669,3345.7,3344.4,2.3592]
[1642260551554,0.431,3345.6,3344.4,2.3592]
[1642260551755,0.50859475,3345.6,3344.8,0.00341054]
[1642260552053,0.0764579,3345.5,3344.8,0.00341054]
[1642260552453,0.0764579,3345.5,3345.1,1.35769363]
[1642260552653,0.0764579,3345.5,3344.8,0.00341054]
[1642260552854,0.0764579,3345.5,3345.2,0.00113685]
[1642260553054,0.431,3345.4,3344.6,0.00454739]
[1642260553297,0.431,3345.4,3344.4,0.00568423]
[1642260553595,0.431,3345.4,3344.8,0.045463]
[1642260553798,0.5074579,3345.4,3344.8,0.045463]
[1642260554000,0.5074579,3345.4,3344.9,0.04830512]
[1642260554195,0.431,3345.4,3344.9,0.04830512]
[1642260554396,0.431,3345.4,3345.0,0.00227369]
[1642260555597,0.381,3345.4,3345.0,0.00227369]
[1642260556498,0.381,3345.4,3344.9,0.00284212]
[1642260556700,0.381,3345.4,3345.3,0.045463]
[1642260557947,0.381,3345.4,3345.1,0.045463]
[1642260558249,0.381,3345.4,3345.2,0.04659985]
[1642260558649,0.381,3345.4,3345.2,0.00113685]
[1642260559049,1.65156595,3345.4,3344.6,1.44221488]
[1642260559250,1.3447094,3344.9,3344.6,0.00454739]
[1642260559453,1.65156595,3345.4,3344.2,5.22326782]
[1642260559454,1.27056595,3345.4,3344.7,0.00397896]
[1642260559652,1.27056595,3345.4,3344.6,0.045463]
[1642260560051,1.27056595,3345.4,3344.7,0.00397896]
[1642260560897,1.36216934,3345.3,3344.7,0.00397896]
[1642260561099,1.36216934,3345.3,3344.5,0.05057881]
[1642260561296,1.36216934,3345.3,3344.6,0.00454739]
[1642260561497,1.36216934,3345.3,3344.8,0.045463]
[1642260561698,1.36216934,3345.3,3345.2,0.045463]
[1642260562097,1.36216934,3345.3,3345.2,0.04659985]
[1642260562298,1.36216934,3345.3,3345.2,0.00113685]
[1642260562698,1.36216934,3345.3,3344.9,0.00284212]
[1642260563099,1.36216934,3345.3,3345.0,0.045463]
[1642260563399,1.36216934,3345.3,3345.1,0.00170527]
[1642260564651,1.36216934,3345.3,3345.2,0.045463]
[1642260565058,1.36216934,3345.3,3345.2,0.04659985]
[1642260565652,1.36216934,3345.3,3345.2,0.00113685]
[1642260566157,1.36216934,3345.3,3345.2,0.045463]
[1642260566554,1.36216934,3345.3,3345.2,0.04659985]
[1642260566954,1.36216934,3345.3,3345.2,0.00113685]
[1642260567354,1.36216934,3345.3,3345.2,0.04659985]
[1642260568153,1.36216934,3345.3,3345.2,0.00113685]
[1642260568805,1.36216934,3345.3,3345.1,0.00170527]
[1642260569102,1.36216934,3345.3,3344.9,0.00284212]
[1642260569902,1.36216934,3345.3,3344.9,0.04830512]
[1642260570310,1.36216934,3345.3,3345.0,0.00227369]
[1642260570907,1.36216934,3345.3,3345.1,0.045463]
[1642260571106,1.36216934,3345.3,3345.2,0.045463]
[1642260571307,1.36216934,3345.3,3345.2,0.04659985]
[1642260571505,1.36021934,3345.3,3345.2,0.04659985]
[1642260572551,1.36021934,3345.3,3345.2,0.00113685]
[1642260573349,1.36021934,3345.3,3345.2,0.04659985]
[1642260573549,1.36021934,3345.3,3345.2,0.00113685]
[1642260573749,1.36021934,3345.3,3345.2,0.04659985]
[1642260573950,1.36021934,3345.3,3345.2,0.00113685]
[1642260574353,1.36021934,3345.3,3345.2,0.04659985]
[1642260574652,1.36021934,3345.3,3345.2,6.78859985]
[1642260575257,0.00113685,3345.6,3345.2,6.78859985]
[1642260575552,0.00113685,3345.6,3345.5,0.045463]
[1642260575804,1.1433999,3345.6,3345.5,0.045463]
[1642260575999,0.00113685,3345.6,3345.5,0.045463]
[1642260579005,0.00113685,3345.6,3345.5,0.850063]
[1642260579652,0.00113685,3345.6,3345.5,9.450063]
[1642260580852,0.00113685,3345.6,3345.5,0.850063]
[1642260581755,1.45724344,3345.8,3345.5,0.850063]
[1642260581953,1.45724344,3345.8,3345.6,0.045463]
[1642260582157,0.00170527,3345.7,3345.6,0.045463]
[1642260584001,0.00170527,3345.7,3345.5,0.045463]
[1642260584300,0.00113685,3345.6,3345.5,0.045463]
[1642260584504,0.00113685,3345.6,3345.2,2.69419779]
[1642260584505,0.00113685,3345.6,3345.4,0.045463]
[1642260584703,0.00113685,3345.6,3345.3,0.045463]
[1642260585506,0.00113685,3345.6,3345.3,1.18225054]
[1642260585703,0.00113685,3345.6,3345.2,0.00113685]
[1642260586103,0.00113685,3345.6,3345.1,0.00170527]
[1642260587754,0.00113685,3345.6,3345.1,0.04716827]
[1642260587954,1.4145534,3345.5,3345.1,1.21017555]
[1642260588164,1.4145534,3345.5,3345.2,0.00113685]
[1642260588360,0.00113685,3345.6,3345.2,0.00113685]
[1642260589555,1.47966107,3345.5,3345.2,0.00113685]
[1642260589755,1.47966107,3345.5,3345.0,0.00227369]
[1642260591600,1.47966107,3345.5,3345.0,0.04773669]
[1642260592000,0.00113685,3345.6,3345.1,0.00170527]
[1642260592201,0.00113685,3345.6,3345.2,0.05277543]
[1642260592800,0.00113685,3345.6,3345.1,0.00170527]
[1642260593999,0.00113685,3345.6,3345.4,1.38451722]
[1642260594201,0.00113685,3345.6,3345.2,0.045463]
[1642260594953,0.00113685,3345.6,3345.3,0.045463]
[1642260595153,0.00113685,3345.6,3345.4,0.045463]
[1642260595354,0.00113685,3345.6,3345.5,0.045463]
[1642260595554,0.00113685,3345.6,3345.1,0.00170527]
[1642260595959,0.00113685,3345.6,3344.8,4.855327]
[1642260596153,0.00341054,3345.5,3344.8,4.85362173]
[1642260596355,0.00341054,3345.5,3345.3,1.34364829]
[1642260596555,1.45724344,3345.8,3344.8,4.85362173]
[1642260596556,0.00284212,3345.4,3344.9,2.5574104]
[1642260596956,1.26628569,3345.2,3344.9,2.5574104]
[1642260597459,0.00113685,3345.1,3344.9,2.5574104]
[1642260597656,1.20325716,3345.0,3344.9,2.5574104]
[1642260597857,0.00113685,3345.1,3344.9,6.53186708]
[1642260598056,0.00113685,3345.1,3345.0,9.15257808]
[1642260598513,0.00113685,3345.1,3345.0,9.22239351]
[1642260598709,0.00113685,3345.1,3344.6,7.00530759]
[1642260598910,0.00113685,3345.1,3344.7,1.38736845]
[1642260599113,0.00113685,3345.1,3344.7,1.38850529]
[1642260599412,0.00113685,3345.1,3344.7,3.94591569]
[1642260600413,0.00113685,3345.1,3344.8,3.86579865]
[1642260600615,1.01882054,3345.2,3344.8,6.42320905]
[1642260600813,1.01882054,3345.2,3344.9,3.85389807]
[1642260601117,3.7436,3346.2,3344.9,3.85389807]
[1642260601314,3.7436,3346.2,3344.9,1.1753]
[1642260601713,3.7436,3346.2,3344.9,3.7327104]
[1642260601912,3.7436,3346.2,3344.9,2.21780918]
[1642260602161,1.50716721,3345.6,3344.9,3.45022095]
[1642260602958,1.50716721,3345.6,3345.0,3.80597614]
[1642260603158,1.50716721,3345.6,3344.7,4.25916814]
[1642260604859,1.50716721,3345.6,3344.8,1.09569222]
[1642260605060,1.45716721,3345.6,3345.4,1.27067878]
[1642260607118,3.7436,3346.2,3345.4,1.27067878]
[1642260607314,0.431,3346.2,3345.4,1.27067878]
[1642260607714,0.00568424,3346.1,3345.4,1.27067878]
[1642260607915,0.00568424,3346.1,3345.1,5.07195104]
[1642260608116,0.00511581,3346.0,3345.1,5.07195104]
[1642260608516,0.00454739,3345.9,3345.1,5.07195104]
[1642260608716,0.00454739,3345.9,3345.1,1.1882]
[1642260608916,0.00397897,3345.8,3345.2,3.82471989]
[1642260609124,0.00397897,3345.8,3345.2,1.11698626]
[1642260609317,0.431,3346.2,3345.2,1.11698626]
[1642260609318,0.11023312,3345.5,3345.2,1.11698626]
[1642260609564,0.22046624,3345.5,3345.2,1.11698626]
[1642260609762,0.00170527,3345.4,3345.2,1.11698626]
[1642260610162,0.00113685,3345.3,3345.2,1.11698626]
[1642260610362,0.00113685,3345.3,3345.2,4.96900979]
[1642260610560,1.09402267,3345.3,3345.2,4.90082892]
[1642260610963,1.09402267,3345.3,3345.2,1.06698626]
[1642260613165,0.00113685,3345.3,3345.2,1.06698626]
[1642260614807,1.60526247,3345.3,3345.2,1.06698626]
[1642260615211,8.20526247,3345.3,3345.2,1.06698626]
[1642260615412,8.63626247,3345.3,3345.2,1.06698626]
[1642260615608,8.63626247,3345.3,3344.4,3.83602218]
[1642260615909,8.63626247,3345.3,3344.5,0.00341054]
[1642260616312,0.045463,3345.0,3344.5,0.00341054]
[1642260616510,0.431,3344.9,3344.5,1.53704866]
[1642260616710,0.431,3344.9,3344.5,0.00341054]
[1642260616914,0.431,3344.9,3344.6,0.00284212]
[1642260617169,0.5074579,3344.9,3344.6,0.00284212]
[1642260617569,1.47742005,3344.7,3344.6,0.00284212]
[1642260617968,1.47742005,3344.7,3344.3,1.44723422]
[1642260618368,1.47742005,3344.7,3344.4,0.00397896]
[1642260619167,1.47742005,3344.7,3343.9,0.00682108]
[1642260619372,0.431,3344.6,3343.9,0.00682108]
[1642260619772,1.29554368,3344.1,3343.9,0.00682108]
[1642260619969,0.11023312,3344.0,3343.8,0.0073895]
[1642260620171,0.22046624,3344.0,3343.8,0.0073895]
[1642260620372,1.40447497,3343.9,3343.8,0.0073895]
[1642260621310,0.22046624,3344.0,3343.8,0.0073895]
[1642260621510,0.22046624,3344.0,3343.8,3.8226883]
[1642260621910,0.22046624,3344.0,3343.9,6.05682108]
[1642260622410,0.22046624,3344.0,3343.9,0.00682108]
[1642260622810,0.22046624,3344.0,3343.9,2.56484612]
[1642260623011,0.22046624,3344.0,3343.9,2.55802504]
[1642260623310,0.22046624,3344.0,3343.9,2.56484612]
[1642260627765,0.22046624,3344.0,3343.9,6.38874892]
[1642260628165,0.22046624,3344.0,3343.9,7.06484612]
[1642260628417,0.22046624,3344.0,3343.9,10.88357402]
[1642260628715,0.22046624,3344.0,3343.9,7.06484612]
[1642260628918,0.22046624,3344.0,3343.9,10.84508821]
[1642260629119,1.2262,3344.9,3344.0,9.97717978]
[1642260629320,0.00113685,3345.3,3344.2,0.74755]
[1642260629518,0.00113685,3345.3,3344.3,5.02639357]
[1642260629715,0.00113685,3345.3,3344.3,5.03094096]
[1642260629921,1.45198692,3344.8,3344.4,0.00397896]
[1642260630116,0.00113685,3345.3,3344.5,1.50871743]
[1642260630317,0.00113685,3345.3,3344.6,4.67502633]
[1642260630519,0.00113685,3345.3,3344.6,4.67786845]
[1642260630714,0.00113685,3345.3,3344.7,0.00227369]
[1642260631725,1.11660479,3345.2,3344.7,0.00227369]
[1642260632172,0.00113685,3345.3,3344.7,0.00227369]
[1642260632577,0.00113685,3345.3,3344.7,2.56029873]
[1642260632771,0.00113685,3345.3,3344.8,4.25535698]
[1642260632973,0.00113685,3345.3,3344.8,4.25706225]
[1642260633174,1.49902204,3345.2,3344.9,0.00113685]
[1642260633573,0.00113685,3345.3,3344.9,0.00113685]
[1642260633975,0.00113685,3345.3,3345.0,0.05208323]
[1642260634173,0.00113685,3345.3,3345.1,0.431]
[1642260634372,0.00113685,3345.3,3345.2,30.58525204]
[1642260634772,0.00113685,3345.3,3345.2,23.65043505]
[1642260635280,1.54246899,3346.7,3345.2,1.21518301]
[1642260635474,1.52276049,3345.4,3345.2,5.29065837]
[1642260635680,1.52276049,3345.4,3345.2,7.60923023]
[1642260636614,1.52276049,3345.4,3345.2,8.35648253]
[1642260637416,1.52276049,3345.4,3345.3,2.55802504]
[1642260638012,1.52276049,3345.4,3345.3,6.38190051]
[1642260638212,2.29976049,3345.4,3345.3,6.38190051]
[1642260639961,2.29976049,3345.4,3345.3,10.48190051]
[1642260640466,2.29976049,3345.4,3345.3,6.38190051]
[1642260641060,0.045463,3346.2,3345.3,3.03611561]
[1642260641269,0.045463,3346.2,3344.8,2.25486439]